Cogmind - Beta 12 @@@ ROGUE MODE // 2023.06.03 @ 18:22:42 Player: LustLizard Result: Self-destructed Performance ------------- Evolutions (2) 1000 Regions Visited (7) 1400 Robots Destroyed (45) 225 Value Destroyed (1095) 1095 Prototype IDs (3) 60 Alien Tech Used (0) 0 Bonus (314) 314 TOTAL SCORE: 4094 Bonus ------- Follower Combat Kills 14 Aligned with FarCom 300 Cogmind --------- Core Integrity 550/550 Matter 208/300 Energy 150/150 System Corruption 0% Temperature Warning (324) Movement Flying (50) Location -8/Materials Parts ------- > --- POWER (1) -------- Light Angular Momentum Engine > --- PROPULSION (4) --- Flying Fortress v7 > --- UTILITY (4) ------ Improved Heat Sink Large Storage Unit Improved Power Shielding Hardened Medium Armor Plating > --- WEAPON (2) ------- Heavy Laser Heavy Mace > --- INVENTORY (15) --- Cooled Ion Engine Deuterium Engine Advanced Treads Advanced Treads Advanced Treads Airjet Large Storage Unit Signal Interpreter Hardened Medium Armor Plating Particle Gun Heavy Laser Heavy Laser Heavy Laser Beam Cannon Rocket Launcher Peak State ------------ > --- POWER ------------ Light Angular Momentum Engine > --- PROPULSION ------- Flying Fortress v7 > --- UTILITY ---------- Improved Heat Sink Large Storage Unit Improved Power Shielding Hardened Medium Armor Plating > --- WEAPON ----------- Heavy Laser Heavy Laser > --- INVENTORY -------- Ion Engine Cooled Ion Engine Deuterium Engine Light Treads Light Treads Carbon-fiber Leg Airjet Large Storage Unit Signal Interpreter Particle Gun Heavy Laser Heavy Laser Beam Cannon Rocket Launcher Hammer [Rating: 58] Favorites ----------- Power Ion Engine Engine Ion Engine Propulsion Light Treads Treads Light Treads Leg Aluminum Leg Wheel Compact Wheel Flight Unit Flying Fortress v7 Utility Light Armor Plating Device Improved Heat Sink Storage Large Storage Unit Processor Transport Network Coupler Protection Light Armor Plating Weapon Assault Rifle Energy Gun Heavy Laser Ballistic Gun Assault Rifle Ballistic Cannon Improved Light Cannon Launcher Rocket Launcher Impact Weapon Hammer Build | -11 -10 -10 -9 -9 -9 -8 -8 ------- Run | Jun Mat Min Mat Min Exi Min Mat Slots Evolved 4 | . . . 2 . . . 2 Power . | . . . . . . . . Propulsion 2 | . . . 1 . . . 1 Utility 2 | . . . 1 . . . 1 Weapon . | . . . . . . . . Parts Attached 54 | 6 16 7 6 3 3 2 11 Power 6 | 1 3 1 . . . 1 . Engine 6 | 1 3 1 . . . 1 . Core . | . . . . . . . . Reactor . | . . . . . . . . Propulsion 9 | 2 1 2 2 . 1 . 1 Treads 4 | 1 1 2 . . . . . Leg 1 | . . . 1 . . . . Wheel 3 | 1 . . 1 . 1 . . Hover . | . . . . . . . . Flight 1 | . . . . . . . 1 Utility 16 | 1 4 3 2 . 2 1 3 Device 5 | . 2 1 . . 1 1 . Storage 3 | 1 1 1 . . . . . Processor 1 | . 1 . . . . . . Hackware . | . . . . . . . . Protection 7 | . . 1 2 . 1 . 3 Artifact . | . . . . . . . . Weapon 23 | 2 8 1 2 3 . . 7 Energy Gun 6 | 2 . . . . . . 4 Energy Cannon . | . . . . . . . . Ballistic Gun 7 | . 6 1 . . . . . Ballistic Cannon 4 | . . . 2 2 . . . Launcher 1 | . . . . 1 . . . Special Weapon . | . . . . . . . . Impact Weapon 5 | . 2 . . . . . 3 Slashing Weapon . | . . . . . . . . Piercing Weapon . | . . . . . . . . Special Melee Weapon . | . . . . . . . . Unidentified Prototypes 3 | . . 1 . . 1 . 1 Parts Lost 6 | . 1 5 . . . . . Power 1 | . . 1 . . . . . Propulsion 2 | . . 2 . . . . . Utility 1 | . . 1 . . . . . Weapon 2 | . 1 1 . . . . . Highest Loss Streak 3 | . 1 3 . . . . . To Critical Strikes . | . . . . . . . . Average Slot Usage (%) 91 | . 97 92 93 100 99 100 71 Engine 12 | . 14 13 11 11 11 11 9 Treads 15 | . 14 22 22 22 22 22 . Wheel 7 | . 14 4 2 11 11 11 . Flight 1 | . . . . . . . 9 Device 5 | . 11 2 . . . 2 9 Storage 12 | . 14 14 11 11 11 11 9 Protection 10 | . . 6 22 22 20 19 17 Energy Gun 3 | . . . . . . . 16 Ballistic Gun 15 | . 26 26 16 . . . . Ballistic Cannon 4 | . . . 5 21 22 22 . Naked Turns . | . . . . . . . . Heaviest Build 48 | 12 20 31 36 39 39 41 48 Greatest Support 50 | 16 20 40 40 10 40 10 50 Greatest Overweight (x) 4 | . 1 1 3 3 3 4 . Average Overweight (x) . | . . . . 3 2 3 . Largest Inventory Capacity 15 | 8 10 15 15 15 15 15 15 Average Capacity 12 | 7 8 11 15 15 15 15 15 Most Carried 15 | 6 10 11 15 15 15 15 15 Average Carried 11 | 4 8 10 13 14 14 15 14 Final Capacity 15 | 8 10 15 15 15 15 15 15 Final Carried 15 | 6 10 11 15 15 15 15 15 Class Distribution -------------------- 100% | Mutant Dominant Class ---------------- Mutant | -10/Materials Mutant | -10/Mines Mutant | -9/Materials Mutant | -9/Mines Mutant | -9/Exiles Mutant | -8/Mines Mutant | -8/Materials Resources | -11 -10 -10 -9 -9 -9 -8 -8 ----------- Run | Jun Mat Min Mat Min Exi Min Mat Matter Collected 1243 | 227 359 217 58 100 . 124 158 Remotely . | . . . . . . . . Salvage Created 1340 | . 497 266 122 . . 90 365 Parts 94 | . 31 20 5 . . 10 28 Haulers Intercepted 1 | . 1 . . . . . . Recyclers Shooed 4 | . 2 1 1 . . . . Parts Field Recycled . | . . . . . . . . Retrieved Matter . | . . . . . . . . Parts Self-Destructed . | . . . . . . . . Prevented . | . . . . . . . . Kills | -11 -10 -10 -9 -9 -9 -8 -8 ------- Run | Jun Mat Min Mat Min Exi Min Mat Combat Hostiles Destroyed 37 | . 10 11 2 . . 6 8 Guns 31 | . 10 11 2 . . . 8 Cannons 6 | . . . . . . 6 . Classes Destroyed 10 | . 6 1 1 . . . 2 Worker 2 | . 1 1 . . . . . Tunneler 1 | . . 1 . . . . . Hauler 1 | . 1 . . . . . . Recycler 1 | . . . 1 . . . . Operator 2 | . 1 . . . . . 1 Watcher 1 | . 1 . . . . . . Swarmer 15 | . 3 9 . . . 3 . Cutter 2 | . . . . . . . 2 Grunt 17 | . 7 2 2 . . 3 3 Sentry 3 | . . . . . . . 3 Best Kill Streak 3 | . 3 3 2 . . 3 3 Combat Bots Only 3 | . 3 3 2 . . 3 3 Max Kills in Single Turn 1 | . 1 1 1 . . 1 1 Gunslinging . | . . . . . . . . Exploded . | . . . . . . . . Melee . | . . . . . . . . Uniques/NPCs Destroyed . | . . . . . . . . Combat | -11 -10 -10 -9 -9 -9 -8 -8 -------- Run | Jun Mat Min Mat Min Exi Min Mat Damage Taken 1954 | . 419 434 18 6 . 487 590 Core 203 | . 118 21 . . . 64 . Absorbed by Shields . | . . . . . . . . Redirected to Shielding 34 | . . . . . . . 34 Core Remaining (%) 76 | 100 . 44 . . . 84 . Volleys Fired 140 | . 41 37 6 5 . 19 32 Largest 2 | . 2 2 2 2 . 2 2 Hottest 138 | . 40 40 59 78 . 78 138 Shots Fired 249 | . 75 61 12 10 . 38 53 Gun 197 | . 75 61 8 . . . 53 Cannon 52 | . . . 4 10 . 38 . Launcher . | . . . . . . . . Special . | . . . . . . . . Kinetic 196 | . 75 61 12 10 . 38 . Thermal 53 | . . . . . . . 53 Explosive . | . . . . . . . . Electromagnetic . | . . . . . . . . Robot Hit Streak 18 | . 8 11 8 6 . 7 18 Robot Miss Streak 5 | . 3 3 1 5 . 2 3 Penetration Max . | . . . . . . . . Secondary Targets 4 | . . 3 . . . . 1 Max Gunslinging Chain 1 | . . 1 . . . . 1 Shots Hit Robots 174 | . 55 43 10 5 . 23 38 Core Hits 74 | . 24 18 4 . . 10 18 Critical Kills 1 | . . . 1 . . . . Critical Parts Destroyed . | . . . . . . . . Critical Strikes 2 | . . . 1 . . . 1 Burn 1 | . . . . . . . 1 Destroy 1 | . . . 1 . . . . Melee Attacks 14 | . 5 . . . . . 9 Impact 14 | . 5 . . . . . 9 Slashing . | . . . . . . . . Piercing . | . . . . . . . . Sneak Attacks . | . . . . . . . . Combat Hostiles . | . . . . . . . . Follow-up Attacks . | . . . . . . . . Damage Inflicted 2669 | . 656 539 145 107 . 497 725 Guns 1928 | . 622 523 58 . . . 725 Cannons 691 | . . . 87 107 . 497 . Explosions . | . . . . . . . . Melee 34 | . 34 . . . . . . Ramming 16 | . . 16 . . . . . Kinetic 1894 | . 622 523 145 107 . 497 . Thermal 725 | . . . . . . . 725 Explosive . | . . . . . . . . Electromagnetic . | . . . . . . . . Impact 34 | . 34 . . . . . . Slashing . | . . . . . . . . Piercing . | . . . . . . . . Highest Corruption . | . . . . . . . . Average Corruption . | . . . . . . . . Corruption Purged . | . . . . . . . . Corruption Blocked . | . . . . . . . . Overload Shots . | . . . . . . . . Overflow Damage 21 | . 14 . 7 . . . . Projectiles 7 | . . . 7 . . . . Explosions . | . . . . . . . . Melee 14 | . 14 . . . . . . Knockbacks 13 | . 1 . 2 3 . 7 . Impact 1 | . 1 . . . . . . Kinetic 12 | . . . 2 3 . 7 . Secondary . | . . . . . . . . Self-Inflicted Damage 2 | . . 2 . . . . . Shots . | . . . . . . . . Rammed 1 | . . 1 . . . . . Targets Rammed 2 | . . 2 . . . . . Kicked . | . . . . . . . . Crushed 1 | . . 1 . . . . . Highest Temperature 324 | . 23 20 62 81 . 234 324 Average Temperature 92 | . 8 5 29 36 . 98 129 Received Heat Transfer 786 | . 225 156 9 . . 216 180 Effects 3 | . . . . . . . 3 Energy Bleed 1 | . . . . . . . 1 Matter Decay 1 | . . . . . . . 1 Damage (minor) 1 | . . . . . . . 1 Siege Activations . | . . . . . . . . Robots Corrupted . | . . . . . . . . Combat Hostiles . | . . . . . . . . Parts Fried . | . . . . . . . . Impact Corruptions 1 | . 1 . . . . . . Robots Melted . | . . . . . . . . Combat Hostiles . | . . . . . . . . Parts Melted 2 | . . . . . . . 2 Heat Transferred 1480 | . . . . . . . 1480 Parts Sabotaged . | . . . . . . . . Parts Stolen . | . . . . . . . . Parts Stripped . | . . . . . . . . Power Chain Reactions . | . . . . . . . . Missiles Intercepted . | . . . . . . . . Alert | -11 -10 -10 -9 -9 -9 -8 -8 ------- Run | Jun Mat Min Mat Min Exi Min Mat Peak Influence 261 | . 227 180 71 71 . 158 261 Initial 61 | . . 25 1 27 . . 61 Average 54 | . 72 28 57 56 . 95 49 Maximum Alert Level 1 | . 1 . . . . . 1 Low Security (%) 97 | 100 95 100 100 100 . 100 95 Level 1 2 | . 4 . . . . . 4 Level 2 . | . . . . . . . . Level 3 . | . . . . . . . . Level 4 . | . . . . . . . . Level 5 . | . . . . . . . . High Security . | . . . . . . . . Max Security . | . . . . . . . . Squads Dispatched 6 | . 1 . . 1 . . 4 Investigation 2 | . 1 . . . . . 1 Extermination . | . . . . . . . . Reinforcement 4 | . . . . 1 . . 3 Assault . | . . . . . . . . Garrison . | . . . . . . . . Intercept . | . . . . . . . . Searches Triggered . | . . . . . . . . Construction Impeded 1 | . . . . 1 . . . Haulers Reinforced . | . . . . . . . . Active Scanning Responses . | . . . . . . . . Cargo Convoy Interrupts . | . . . . . . . . Stealth | -11 -10 -10 -9 -9 -9 -8 -8 --------- Run | Jun Mat Min Mat Min Exi Min Mat Distress Signals 9 | . . . 6 . . . 3 Communications Jammed . | . . . . . . . . Distress Signals . | . . . . . . . . Times Spotted 76 | . 20 12 3 7 . 6 28 Peak Tracking Total 15 | . 3 3 4 11 . 3 15 Tactical Retreats 4 | . . 1 . . . . 3 Traps | -11 -10 -10 -9 -9 -9 -8 -8 ------- Run | Jun Mat Min Mat Min Exi Min Mat Traps Triggered 2 | . 1 . . . . . 1 Indirectly . | . . . . . . . . Trap Hack Attempts . | . . . . . . . . Triggered . | . . . . . . . . Disarmed . | . . . . . . . . Reprogrammed . | . . . . . . . . Reused . | . . . . . . . . Traps Extracted . | . . . . . . . . Installed . | . . . . . . . . Triggered . | . . . . . . . . Machines | -11 -10 -10 -9 -9 -9 -8 -8 ---------- Run | Jun Mat Min Mat Min Exi Min Mat Machines Disabled . | . . . . . . . . Max in Single Turn . | . . . . . . . . Garrison Access 1 | . . . . . . . 1 Machines Repaired . | . . . . . . . . Machines Sabotaged . | . . . . . . . . Overloaded Fab Kills . | . . . . . . . . Hacking | -11 -10 -10 -9 -9 -9 -8 -8 --------- Run | Jun Mat Min Mat Min Exi Min Mat Machines Accessed 15 | . 8 . . . 1 . 6 Terminals 13 | . 8 . . . . . 5 Fabricators . | . . . . . . . . Repair Stations . | . . . . . . . . Recycling Units . | . . . . . . . . Scanalyzers . | . . . . . . . . Garrison Access 1 | . . . . . . . 1 Total Hacks 44 | . 24 . . . 7 . 13 Successful 24 | . 11 . . . 7 . 6 Failed 19 | . 12 . . . . . 7 Catastrophic 4 | . 2 . . . . . 2 Database Lockouts 1 | . 1 . . . . . . Manual 24 | . 23 . . . 1 . . Terminals 36 | . 24 . . . . . 12 Fabricators . | . . . . . . . . Repair Stations . | . . . . . . . . Recycling Units . | . . . . . . . . Scanalyzers . | . . . . . . . . Garrison Access 1 | . . . . . . . 1 Terminal Hacks 19 | . 7 . . . 7 . 5 Record 7 | . . . . . 7 . . Robot Analysis 3 | . 3 . . . . . . Branch Access Points 1 | . . . . . . . 1 Alert Level 1 | . . . . . . . 1 Unreport Threat 4 | . 2 . . . . . 2 Locate Traps 2 | . 2 . . . . . . Recall Investigation 1 | . . . . . . . 1 Fabricator Hacks . | . . . . . . . . Repair Station Hacks . | . . . . . . . . Recycling Unit Hacks . | . . . . . . . . Scanalyzer . | . . . . . . . . Garrison Access Hacks 1 | . . . . . . . 1 Seal Access 1 | . . . . . . . 1 Unauthorized Hacks 4 | . 4 . . . . . . Terminals 4 | . 4 . . . . . . Botnet 4 | . 4 . . . . . . Fabricators . | . . . . . . . . Repair Stations . | . . . . . . . . Recycling Units . | . . . . . . . . Scanalyzers . | . . . . . . . . Garrison Access . | . . . . . . . . Data Cores Recovered 2 | . 1 . . . . . 1 Used 1 | . . . . . . . 1 Hacking Detections 13 | . 8 . . . . . 5 Full Trace Events 1 | . 1 . . . . . . Feedback Events . | . . . . . . . . Feedback Blocked . | . . . . . . . . Robot Schematics Acquired . | . . . . . . . . Robots Built . | . . . . . . . . Authchips . | . . . . . . . . Time . | . . . . . . . . Total Robot Build Rating . | . . . . . . . . Part Schematics Acquired . | . . . . . . . . Parts Built . | . . . . . . . . Authchips . | . . . . . . . . Time . | . . . . . . . . Total Part Build Rating . | . . . . . . . . Parts Repaired . | . . . . . . . . Time . | . . . . . . . . Parts Recycled . | . . . . . . . . Recycled Matter . | . . . . . . . . Retrieved Matter . | . . . . . . . . Retrieved Components . | . . . . . . . . Parts Scanalyzed . | . . . . . . . . Part Schematics Acquired . | . . . . . . . . Parts Damaged . | . . . . . . . . Bothacking | -11 -10 -10 -9 -9 -9 -8 -8 ------------ Run | Jun Mat Min Mat Min Exi Min Mat Used RIF Installer . | . . . . . . . . Robots Hacked . | . . . . . . . . Non-combat . | . . . . . . . . Combat . | . . . . . . . . Robot Hacks Applied . | . . . . . . . . Relay Couplers Released . | . . . . . . . . Fabnet Peak Effective % . | . . . . . . . . Robots Rewired . | . . . . . . . . Allies Hacked . | . . . . . . . . Hacks Repelled . | . . . . . . . . Allies | -11 -10 -10 -9 -9 -9 -8 -8 -------- Run | Jun Mat Min Mat Min Exi Min Mat Total Allies 3 | . . 1 . 2 . . . Largest Group 2 | . . 1 . 2 2 . . Highest-Rated Group 43 | . . 31 . 43 43 . . Highest-Rated Ally 31 | . . 31 . 31 31 . . Total Orders . | . . . . . . . . Ally Attacks 4 | . . . . 4 . . . Total Damage 40 | . . . . 40 . . . Kills 2 | . . . . 2 . . . Allies Corrupted . | . . . . . . . . Allies Melted . | . . . . . . . . Intel | -11 -10 -10 -9 -9 -9 -8 -8 ------- Run | Jun Mat Min Mat Min Exi Min Mat Robot Analysis Total 3 | . 3 . . . . . . Derelict Logs Recovered 4 | . . 3 . 1 . . . Drone Launches . | . . . . . . . . Drone Recoveries . | . . . . . . . . Exploration | -11 -10 -10 -9 -9 -9 -8 -8 ------------- Run | Jun Mat Min Mat Min Exi Min Mat Turns Passed 4270 | 57 1171 1118 310 191 321 336 766 Spaces Moved 3023 | 43 866 697 183 133 250 184 667 Core 1 | 1 . . . . . . . Treads 703 | . 132 439 131 . 1 . . Legs . | . . . . . . . . Wheels 1652 | 42 734 258 52 133 249 184 . Hover . | . . . . . . . . Flight 667 | . . . . . . . 667 Fastest Speed 50 | 50 100 115 125 125 125 125 50 Average Speed 110 | 98 114 143 150 125 125 126 50 Slowest Speed 160 | 100 160 160 160 125 160 140 50 Overloaded Moves . | . . . . . . . . Propulsion Burnouts . | . . . . . . . . Robots Hopped 5 | . . . . . . . 5 Cave-ins Triggered . | . . . . . . . . Exploration Rate (%) 52 | 3 99 97 27 43 60 47 41 Regions Visited 7 Branch Regions 4 Pre-discovered Areas 3 | . . 1 . 1 1 . . Known Exits Taken . | . . . . . . . . Unknown Exits Taken 7 | 1 1 1 1 1 1 1 . Scrap Searched 3 | . . 3 . . . . . Spaces Dug 11 | . 4 . . . . . 7 Terrain Destroyed 14 | . 4 . . . . 3 7 Melee 11 | . 4 . . . . . 7 Projectile 3 | . . . . . . 3 . AOE . | . . . . . . . . Terrain Rammed . | . . . . . . . . Walls Destroyed . | . . . . . . . . Machines Disabled . | . . . . . . . . Actions | -11 -10 -10 -9 -9 -9 -8 -8 --------- Run | Jun Mat Min Mat Min Exi Min Mat Total 3682 | 54 971 760 209 147 260 249 1032 Wait 368 | . 22 5 2 5 . 42 292 Move 3007 | 42 865 696 182 132 249 183 658 Hop 4 | . . . . . . . 4 Pick Up 44 | 6 8 8 7 1 1 1 12 Fast Attach 21 | 6 5 2 3 . 3 . 2 Attach 10 | . 1 4 2 1 . . 2 Detach 3 | . 2 . 1 . . . . Swap 23 | . 10 1 1 2 . 2 7 Drop 46 | . 12 5 5 1 7 2 14 Fire 140 | . 41 37 6 5 . 19 32 Melee 14 | . 5 . . . . . 9 Ram 1 | . . 1 . . . . . Kick . | . . . . . . . . Crush 1 | . . 1 . . . . . Escape Stasis . | . . . . . . . . Rewire . | . . . . . . . . Trap . | . . . . . . . . Miscellaneous . | . . . . . . . . Route ------- -11/Junkyard -10/Materials (discovered 4 exits: [*Mat x3] / [*Min]) -10/Mines (discovered 2 exits: [*Mat x2]) -9/Materials -9/Mines (discovered 2 exits: *Mat / *Exi) -9/Exiles -8/Mines -8/Materials (discovered 1 exit: [*Fac]) History --------- Turn | Location | Event 20 | -11/Junkyard | Discovered new exit (range 16) 58 | -11/Junkyard | Entered Materials 139 | -10/Materials | Discovered new exit (range 6) 193 | -10/Materials | Discovered new exit (range 16) 300 | -10/Materials | Build established: Mutant 344 | -10/Materials | Discovered new exit (range 5) 977 | -10/Materials | Discovered new exit (range 13) 1054 | -10/Materials | Central database locked down 1229 | -10/Materials | Entered Mines 1240 | -10/Mines | Learned Materials machine intel 1317 | -10/Mines | Received a Rocket Launcher from a helpful Derelict 1337 | -10/Mines | Found a damaged Exp. Sensor Array with a note attached 1340 | -10/Mines | Found Prototype Device 1340 | -10/Mines | Identified Exp. Sensor Array 1433 | -10/Mines | Core integrity fell below 50% 1641 | -10/Mines | Lost 3 parts (1p2n) 1663 | -10/Mines | Discovered new exit (range 11) 1666 | -10/Mines | Received a Mining Laser from a helpful Derelict 1754 | -10/Mines | Learned Materials emergency access door positions 2149 | -10/Mines | Discovered new exit (range 4) 2347 | -10/Mines | Entered Materials 2347 | -9/Materials | Evolved 2 slots: Propulsion x1, Utility x1 2349 | -9/Materials | Loaded intel: 42 machine locations 2596 | -9/Materials | Discovered new exit (range 12) 2604 | -9/Materials | Met 8R-AWN 2657 | -9/Materials | Entered Mines 2658 | -9/Mines | Followed 8R-AWN into the Mines 2674 | -9/Mines | Met a Derelict bent on vengeance 2674 | -9/Mines | Learned Materials security intel 2743 | -9/Mines | Assembled infested the area 2799 | -9/Mines | Learned location of Storage (-7) 2799 | -9/Mines | Discovered new exit (range 14) 2820 | -9/Mines | Discovered new exit (range 5) 2848 | -9/Mines | Entered Exiles 2848 | -9/Exiles | Accompanied by 2 allies 2878 | -9/Exiles | Led the pair of lost Derelicts to a safe place 2878 | -9/Exiles | Welcomed by 8R-AWN 2901 | -9/Exiles | Met EX-HEX 2935 | -9/Exiles | Met EX-BIN 2950 | -9/Exiles | Aligned with FarCom system 2951 | -9/Exiles | Given EX-Vault access code 2980 | -9/Exiles | Opened EX-Vault 2987 | -9/Exiles | Found Prototype Device 2987 | -9/Exiles | Identified Supersonic Drone Bay 3002 | -9/Exiles | Found Prototype Flight Unit 3037 | -9/Exiles | Warned to stay clear of 0b10 Research branches 3070 | -9/Exiles | Met EX-DEC 3123 | -9/Exiles | Learned location of Zion (-7) 3159 | -9/Exiles | Discovered new exit (range 10) 3169 | -9/Exiles | Left Exiles lab with Flying Fortress v7 3169 | -9/Exiles | Entered Mines 3320 | -8/Mines | Discovered new exit (range 12) 3505 | -8/Mines | Entered Materials 3505 | -8/Materials | Evolved 2 slots: Propulsion x1, Utility x1 3507 | -8/Materials | Identified Flying Fortress v7 4227 | -8/Materials | Discovered new exit (range 11) 4271 | -8/Materials | Self-destructed Last Messages --------------- 04207_ Connecting with Terminal... >>Recall(Investigation) Establishing remote squad link... No tasked investigation squads found. 04210_ U-05 Engineer builds a Wall. 04226_ W-25 Informer sends out distress signal. 04227_ EXIT=FOUND 04230_ ALERT: Hostiles spotted, dispatching reinforcements to Terminal M003. 04235_ U-05 Engineer builds a Wall. 04236_ C-17 Slicer destroyed. 04236_ Switching to secondary target: G-47 Trooper. 04246_ C-30 ARC bursts open, deploying its payload. 04246_ G-50 Soldier unfolds itself. 04246_ G-47 Trooper unfolds itself. 04251_ C-17 Slicer destroyed. 04259_ G-47 Trooper destroyed. 04263_ Overheating: Energy bleed (-19). 04270_ Overheating: Matter decay (-62). 04271_ Overheating: Imp. Heat Sink damaged (-12). Map ----- +----------------------------------------------------+ | ## #???????????#! ## # #??# # == | | ###? ##???????????# !* ##########??# + = | | #????????????????# ""T""!##???????????# # = | | ! #????????????????# [""""" #????????????# # | | #????????????????#[! ! ==#????????????# # | | #????????????????##########????????????# ###### | | *#??????????????????????????????????????# #????? | | #????????????????????????????########### #????? | | ######?????????????????????????# ## ##???? | | !#?????????????????????????# # #???? | | #?????????????????????????# [ + #???? | | #?????????????????????????# # [%#???? | | #?????????????????????????# !!* # [!!#???? | | ######?????????????????????????# !! ##"###???? | | ???????????????????????????????# ![ ## #?????? | | ??#######?????????????????????## ####?????? | | ### #?????????????????????## #????????? | | # #?????????????####################???????? | | # # """ #?????????????# #?? ????????? | | # + """ #?????????????#! """ #? ?????????? | | # # """ #?????????????# """ "T" # ???????????? | | # # #?????????????# """ """ / ????????????? | | # #! #?????????????# #?????????????? | | # #######?????????????##########/######+###??????? | | # #??????????????############k #?????? | | # #??????? w%u =umYgg@cHgcgg < #?????? | | # #??????????????############g #?????? | | ?????????w???????????????#Y #"#####+###??????? | | T ?????????????????????????# w#?#??????????????? | | "" ?????????????????????????# #????????????????? | | ?????????????????????????# #????????????????? | | ? ?????????????????????????# #????????????????? | | ? ?????????????????????????# #????????????????? | | ?? ?????????????????????????# #????????????????? | | ?? ?????????????????????????# #????????????????? | | ????????????????????????????# #????????????????? | | ????????????????????????????# #????????????????? | | ????????????????????????????+ #????????????????? | | ????????????????????????????? #????????????????? | | ????????????????????????????? #????????????????? | | ????????????????????????????? ?????????????????? | | ?????????????????????????????????????????????????? | | ?????????????????????????????????????????????????? | | ?????????????????????????????????????????????????? | | ?????????????????????????????????????????????????? | | ?????????????????????????????????????????????????? | | ?????????????????????????????????????????????????? | | ?????????????????????????????????????????????????? | | ?????????????????????????????????????????????????? | | ?????????????????????????????????????????????????? | +----------------------------------------------------+ Best States ------------- Heat Dissipation 45 Energy Generation 18 Energy Capacity 250 Matter Stores 300 Matter Capacity 300 Sight Range 16 Robot Scan Range 20 Terrain Scan Density 10 Armor Coverage 300 Power Shielding 66 Evasion (%) 60 Recoil Reduction 2 Item Schematics ----------------- None Robot Schematics ------------------ None Fabricated ------------ Nothing Alien Tech Used ----------------- None Achievements -------------- None Challenges ------------ None Game ------ Seed LayeredBattleNetwork Manual? 0 Play Time 00:47:42 Cumulative 57.0 hours Start 2023.06.03 @ 17:31:53 End 2023.06.03 @ 18:22:42 Sessions 1 Manual Loads 0 Difficulty Rogue Special Mode None Game No. 51 Rogue 51 Adventurer 0 Explorer 0 Win Type - Total 0 Types 0/0/0/0/0/0/0/0/0 Lore% 32 Gallery% 37 Achievement% 30 Wizard Run 0 Options --------- ASCII 0 Keyboard 0 Movement Numpad Keybinds 0 Fullscreen 1 Font 18/SmallcapsGlow Map View 76x50 Tactical HUD 1 Map Filters NONE Filters NONE Steam 1 RUN: fbc41580-2a56-4170-8946-57ac4f962141